Cogmind - Beta 10.2 @@@ ROGUE MODE // 2021.09.06 @ 13:53:49 Player: SpaceCarp Result: Destroyed by as-42175 with Assembled Rifle Performance ------------- Evolutions (0) 0 Regions Visited (4) 800 Robots Destroyed (5) 25 Value Destroyed (136) 136 Prototype IDs (0) 0 Alien Tech Used (0) 0 Bonus (300) 300 TOTAL SCORE: 1261 Bonus ------- Aligned with FarCom 300 Cogmind --------- Core Integrity 0/250 Matter 241/300 Energy 265/265 System Corruption 8% Temperature Cool (17) Movement Core (600) Ox11 Location -9/Mines Parts ------- > --- POWER (1) -------- Improved Ion Engine > --- PROPULSION (2) --- (None) > --- UTILITY (2) ------ Small Storage Unit Large Storage Unit > --- WEAPON (2) ------- Improved Light Cannon Rocket Launcher > --- INVENTORY (12) --- Ion Engine Improved Ion Engine Improved Ion Engine Aluminum Leg Terrain Scanner Propulsion Shielding Weapon Shielding Improved Light Cannon Mace Mace Peak State ------------ > --- POWER ------------ Improved Ion Engine > --- PROPULSION ------- Wheel Wheel > --- UTILITY ---------- Small Storage Unit Large Storage Unit > --- WEAPON ----------- Improved Light Cannon Improved Light Cannon > --- INVENTORY -------- Ion Engine Improved Ion Engine Improved Ion Engine Aluminum Leg Mace Mace [Rating: 11] Favorites ----------- Power Improved Ion Engine Engine Improved Ion Engine Power Core Light Nuclear Core Propulsion Wheel Leg Aluminum Leg Wheel Wheel Utility Small Storage Unit Storage Small Storage Unit Weapon Improved Light Cannon Energy Gun Small Laser Ballistic Gun Assault Rifle Ballistic Cannon Improved Light Cannon Launcher Rocket Launcher Build | -11 -10 -10 -10 -9 ------- Run | Scr Mat Min Exi Min Slots Evolved . | . . . . . Power . | . . . . . Propulsion . | . . . . . Utility . | . . . . . Weapon . | . . . . . Parts Attached 19 | 5 13 . 1 . Power 4 | 1 3 . . . Engine 3 | 1 2 . . . Core 1 | . 1 . . . Reactor . | . . . . . Propulsion 6 | 2 4 . . . Treads . | . . . . . Leg 4 | 2 2 . . . Wheel 2 | . 2 . . . Hover . | . . . . . Flight . | . . . . . Utility 2 | . 2 . . . Device . | . . . . . Storage 2 | . 2 . . . Processor . | . . . . . Hackware . | . . . . . Protection . | . . . . . Artifact . | . . . . . Weapon 7 | 2 4 . 1 . Energy Gun 1 | 1 . . . . Energy Cannon . | . . . . . Ballistic Gun 1 | 1 . . . . Ballistic Cannon 4 | . 4 . . . Launcher 1 | . . . 1 . Special Weapon . | . . . . . Impact Weapon . | . . . . . Slashing Weapon . | . . . . . Piercing Weapon . | . . . . . Special Melee Weapon . | . . . . . Unidentified Prototypes . | . . . . . Parts Lost 10 | . 8 . . 2 Power 2 | . 2 . . . Propulsion 4 | . 2 . . 2 Utility . | . . . . . Weapon 4 | . 4 . . . Highest Loss Streak 5 | . 5 . . 2 Average Slot Usage (%) 88 | . 77 100 100 100 Engine 11 | . 9 14 14 14 Core 1 | . 2 . . . Leg 7 | . 15 . . . Wheel 18 | . 10 28 28 28 Storage 21 | . 15 28 28 28 Energy Gun 1 | . 2 . . . Ballistic Gun 2 | . 5 . . . Ballistic Cannon 19 | . 15 28 24 14 Launcher 1 | . . . 3 14 Naked Turns . | . . . . . Heaviest Build 35 | 8 35 35 35 35 Greatest Support 20 | 20 20 20 20 20 Greatest Overweight (x) 6 | 2 6 1 1 1 Average Overweight (x) . | . . 1 1 1 Largest Inventory Capacity 12 | 4 12 12 12 12 Average Capacity 9 | 4 7 12 12 12 Most Carried 10 | 4 9 10 10 10 Average Carried 6 | 1 4 9 10 10 Final Capacity 12 | 4 12 12 12 12 Final Carried 10 | 2 9 10 10 10 Class Distribution -------------------- 100% | Mutant Dominant Class ---------------- Mutant | -10/Materials Mutant | -10/Mines Mutant | -10/Exiles Mutant | -9/Mines Resources | -11 -10 -10 -10 -9 ----------- Run | Scr Mat Min Exi Min Matter Collected 596 | 214 198 184 . . Remotely . | . . . . . Salvage Created 118 | . 78 . . 40 Parts 4 | . 4 . . . Haulers Intercepted . | . . . . . Recyclers Shooed . | . . . . . Parts Field Recycled . | . . . . . Retrieved Matter . | . . . . . Parts Self-Destructed . | . . . . . Prevented . | . . . . . Kills | -11 -10 -10 -10 -9 ------- Run | Scr Mat Min Exi Min Combat Hostiles Destroyed 12 | . 3 . . 9 Cannons 4 | . 3 . . 1 AOE 8 | . . . . 8 Classes Destroyed 4 | . 3 . . 1 Builder 1 | . 1 . . . Operator 1 | . 1 . . . Grunt 3 | . 3 . . . Assembled 9 | . . . . 9 Best Kill Streak 9 | . 1 . . 9 Combat Bots Only 9 | . 1 . . 9 Max Kills in Single Turn 4 | . 1 . . 4 Gunslinging . | . . . . . Exploded 4 | . . . . 4 Melee . | . . . . . Uniques/NPCs Destroyed . | . . . . . Combat | -11 -10 -10 -10 -9 -------- Run | Scr Mat Min Exi Min Damage Taken 1309 | . 1127 10 . 172 Core 257 | . 242 . . 15 Absorbed by Shields . | . . . . . Core Remaining (%) 100 | 100 . . . . Volleys Fired 47 | . 41 . . 6 Largest 2 | . 2 . . 1 Hottest 78 | . 78 . . 39 Shots Fired 78 | . 73 . . 5 Gun 19 | . 19 . . . Cannon 56 | . 54 . . 2 Launcher 3 | . . . . 3 Special . | . . . . . Kinetic 66 | . 64 . . 2 Thermal 9 | . 9 . . . Explosive 3 | . . . . 3 Electromagnetic . | . . . . . Robot Hit Streak 6 | . 6 . . 3 Robot Miss Streak 9 | . 9 . . 1 Penetration Max . | . . . . . Secondary Targets . | . . . . . Shots Hit Robots 41 | . 38 . . 3 Core Hits 27 | . 7 . . 20 Critical Hits . | . . . . . Critical Kills . | . . . . . Critical Parts Destroyed . | . . . . . Melee Attacks . | . . . . . Impact . | . . . . . Slashing . | . . . . . Piercing . | . . . . . Sneak Attacks . | . . . . . Combat Hostiles . | . . . . . Follow-up Attacks . | . . . . . Damage Inflicted 1681 | . 719 1 . 961 Guns 168 | . 168 . . . Cannons 591 | . 545 . . 46 Explosions 915 | . . . . 915 Melee . | . . . . . Ramming 7 | . 6 1 . . Kinetic 694 | . 648 . . 46 Thermal 65 | . 65 . . . Explosive 915 | . . . . 915 Electromagnetic . | . . . . . Impact . | . . . . . Slashing . | . . . . . Piercing . | . . . . . Highest Corruption 8 | . 3 3 3 8 Average Corruption 3 | . 3 3 3 3 Corruption Purged . | . . . . . Effects 17 | . 8 1 7 1 Message Errors 6 | . 4 . 2 . Matter Fused 5 | . 1 1 3 . Heat Flow Errors 1 | . . . 1 . Energy Discharges 3 | . 3 . . . Data Loss (minor) 1 | . . . 1 . Weapon Failures 1 | . . . . 1 Overload Shots . | . . . . . Overflow Damage 51 | . 32 . . 19 Projectiles 32 | . 32 . . . Explosions 19 | . . . . 19 Melee . | . . . . . Knockbacks 6 | . 5 . . 1 Impact . | . . . . . Kinetic 6 | . 5 . . 1 Secondary . | . . . . . Self-Inflicted Damage 3 | . 3 . . . Shots . | . . . . . Rammed 2 | . 1 1 . . Targets Rammed 2 | . 1 1 . . Kicked . | . . . . . Crushed . | . . . . . Highest Temperature 309 | . 309 . 194 17 Average Temperature 119 | . 121 . 99 17 Received Heat Transfer 635 | . 615 . . 20 Effects 1 | . 1 . . . Interference 1 | . 1 . . . Siege Activations . | . . . . . Robots Corrupted . | . . . . . Combat Hostiles . | . . . . . Parts Fried . | . . . . . Impact Corruptions . | . . . . . Robots Melted . | . . . . . Combat Hostiles . | . . . . . Parts Melted . | . . . . . Heat Transferred 150 | . 150 . . . Parts Sabotaged . | . . . . . Parts Stolen . | . . . . . Parts Stripped . | . . . . . Power Chain Reactions . | . . . . . Missiles Intercepted . | . . . . . Alert | -11 -10 -10 -10 -9 ------- Run | Scr Mat Min Exi Min Peak Influence 87 | . 87 . . . Initial . | . . . . . Average 11 | . 14 . . . Maximum Alert Level . | . . . . . Low Security (%) 100 | 100 100 100 . 100 Level 1 . | . . . . . Level 2 . | . . . . . Level 3 . | . . . . . Level 4 . | . . . . . Level 5 . | . . . . . High Security . | . . . . . Max Security . | . . . . . Squads Dispatched 4 | . 4 . . . Investigation 2 | . 2 . . . Extermination . | . . . . . Reinforcement 2 | . 2 . . . Assault . | . . . . . Garrison . | . . . . . Intercept . | . . . . . Construction Impeded . | . . . . . Haulers Reinforced . | . . . . . Stealth | -11 -10 -10 -10 -9 --------- Run | Scr Mat Min Exi Min Distress Signals 1 | . 1 . . . Communications Jammed . | . . . . . Distress Signals . | . . . . . Times Spotted 30 | . 12 3 . 15 Peak Tracking Total 16 | . 5 3 . 16 Tactical Retreats 2 | . 2 . . . Traps | -11 -10 -10 -10 -9 ------- Run | Scr Mat Min Exi Min Traps Triggered 1 | . 1 . . . Indirectly . | . . . . . Trap Hack Attempts . | . . . . . Triggered . | . . . . . Disarmed . | . . . . . Reprogrammed . | . . . . . Reused . | . . . . . Traps Extracted . | . . . . . Installed . | . . . . . Triggered . | . . . . . Machines | -11 -10 -10 -10 -9 ---------- Run | Scr Mat Min Exi Min Machines Disabled . | . . . . . Max in Single Turn . | . . . . . Machines Sabotaged . | . . . . . Garrisons Compromised . | . . . . . Overloaded Fab Kills . | . . . . . Fab Network Shutdowns . | . . . . . Hacking | -11 -10 -10 -10 -9 --------- Run | Scr Mat Min Exi Min Machines Accessed 6 | . 4 . 2 . Terminals 2 | . 2 . . . Fabricators . | . . . . . Repair Stations . | . . . . . Recycling Units 2 | . 2 . . . Scanalyzers . | . . . . . Garrison Access . | . . . . . Total Hacks 13 | . 11 . 2 . Successful 8 | . 6 . 2 . Failed 5 | . 5 . . . Catastrophic . | . . . . . Database Lockouts . | . . . . . Manual . | . . . . . Terminals 7 | . 7 . . . Fabricators . | . . . . . Repair Stations . | . . . . . Recycling Units 4 | . 4 . . . Scanalyzers . | . . . . . Garrison Access . | . . . . . Terminal Hacks 5 | . 3 . 2 . Record 3 | . 1 . 2 . Unreport Threat 1 | . 1 . . . Locate Traps 1 | . 1 . . . Fabricator Hacks . | . . . . . Repair Station Hacks . | . . . . . Recycling Unit Hacks 3 | . 3 . . . Process 1 | . 1 . . . Report Inventory 2 | . 2 . . . Scanalyzer . | . . . . . Garrison Access Hacks . | . . . . . Unauthorized Hacks . | . . . . . Terminals . | . . . . . Fabricators . | . . . . . Repair Stations . | . . . . . Recycling Units . | . . . . . Scanalyzers . | . . . . . Garrison Access . | . . . . . Data Cores Recovered 1 | . 1 . . . Used . | . . . . . Hacking Detections 2 | . 2 . . . Full Trace Events 1 | . 1 . . . Feedback Events . | . . . . . Feedback Blocked . | . . . . . Robot Schematics Acquired . | . . . . . Robots Built . | . . . . . Matter . | . . . . . Time . | . . . . . Total Robot Build Rating . | . . . . . Part Schematics Acquired . | . . . . . Parts Built . | . . . . . Matter . | . . . . . Time . | . . . . . Total Part Build Rating . | . . . . . Parts Repaired . | . . . . . Time . | . . . . . Parts Recycled . | . . . . . Recycled Matter 12 | . 12 . . . Retrieved Matter . | . . . . . Retrieved Components . | . . . . . Parts Scanalyzed . | . . . . . Part Schematics Acquired . | . . . . . Parts Damaged . | . . . . . Bothacking | -11 -10 -10 -10 -9 ------------ Run | Scr Mat Min Exi Min Used RIF Installer . | . . . . . Robots Hacked . | . . . . . Non-combat . | . . . . . Combat . | . . . . . Robot Hacks Applied . | . . . . . Relay Couplers Released . | . . . . . Robots Rewired . | . . . . . Allies Hacked . | . . . . . Hacks Repelled . | . . . . . Allies | -11 -10 -10 -10 -9 -------- Run | Scr Mat Min Exi Min Total Allies . | . . . . . Largest Group . | . . . . . Highest-Rated Group . | . . . . . Highest-Rated Ally . | . . . . . Total Orders . | . . . . . Ally Attacks . | . . . . . Total Damage . | . . . . . Kills . | . . . . . Allies Corrupted . | . . . . . Allies Melted . | . . . . . Intel | -11 -10 -10 -10 -9 ------- Run | Scr Mat Min Exi Min Robot Analysis Total . | . . . . . Derelict Logs Recovered . | . . . . . Drone Launches . | . . . . . Drone Recoveries . | . . . . . Exploration | -11 -10 -10 -10 -9 ------------- Run | Scr Mat Min Exi Min Turns Passed 1424 | 66 698 133 494 33 Spaces Moved 1218 | 68 454 123 548 25 Core 60 | 53 7 . . . Treads . | . . . . . Legs 271 | 15 256 . . . Wheels 887 | . 191 123 548 25 Hover . | . . . . . Flight . | . . . . . Fastest Speed 50 | 50 80 90 90 90 Average Speed 99 | 75 117 90 90 90 Slowest Speed 350 | 150 350 90 90 90 Overloaded Moves . | . . . . . Propulsion Burnouts . | . . . . . Robots Hopped . | . . . . . Cave-ins Triggered . | . . . . . Exploration Rate (%) 39 | 4 47 37 89 22 Regions Visited 4 Branch Regions 3 Pre-discovered Areas 1 | . . . 1 . Known Exits Taken . | . . . . . Unknown Exits Taken 4 | 1 1 1 1 . Scrap Searched . | . . . . . Spaces Dug . | . . . . . Terrain Destroyed 26 | . 3 . . 23 Melee . | . . . . . Projectile 3 | . 3 . . . AOE 23 | . . . . 23 Terrain Rammed . | . . . . . Walls Destroyed . | . . . . . Machines Disabled . | . . . . . Actions | -11 -10 -10 -10 -9 --------- Run | Scr Mat Min Exi Min Total 1351 | 82 544 145 549 31 Wait 37 | 3 13 21 . . Move 1214 | 67 453 122 547 25 Hop . | . . . . . Pick Up 27 | 7 19 1 . . Fast Attach . | . . . . . Attach 19 | 5 13 . 1 . Detach 3 | . 2 . 1 . Swap . | . . . . . Drop 2 | . 2 . . . Fire 47 | . 41 . . 6 Melee . | . . . . . Ram 1 | . . 1 . . Kick 1 | . 1 . . . Crush . | . . . . . Escape Stasis . | . . . . . Rewire . | . . . . . Trap . | . . . . . Miscellaneous . | . . . . . Route ------- -11/Scrapyard -10/Materials (discovered 3 exits: [*Mat] / [*Min x2]) -10/Mines -10/Exiles (discovered 2 exits: [*Min x2]) -9/Mines History --------- Turn | Location | Event 13 | -11/Scrapyard | Discovered new exit (range 16) 67 | -11/Scrapyard | Entered Materials 72 | -10/Materials | Discovered new exit (range 5) 181 | -10/Materials | Met 8R-AWN 195 | -10/Materials | Discovered new exit (range 16) 306 | -10/Materials | Build established: Mutant 427 | -10/Materials | Core integrity fell below 50% 440 | -10/Materials | Core integrity fell below 20% 466 | -10/Materials | Lost 5 parts (1p2n2w) 542 | -10/Materials | Discovered new exit (range 13) 765 | -10/Materials | Entered Mines 766 | -10/Mines | Followed 8R-AWN into the Mines 807 | -10/Mines | Received a Rocket Launcher from a helpful Derelict 895 | -10/Mines | Discovered new exit (range 5) 898 | -10/Mines | Entered Exiles 910 | -10/Exiles | Discovered new exit (range 15) 923 | -10/Exiles | Welcomed by 8R-AWN 940 | -10/Exiles | Met EX-HEX 985 | -10/Exiles | Met EX-DEC 1015 | -10/Exiles | Visited The Gauntlet 1134 | -10/Exiles | Learned location of Zion (-7) 1169 | -10/Exiles | Discovered new exit (range 12) 1226 | -10/Exiles | Met EX-BIN 1239 | -10/Exiles | Aligned with FarCom system 1240 | -10/Exiles | Given EX-Vault access code 1392 | -10/Exiles | Entered Mines 1412 | -9/Mines | Assembled infested the area 1425 | -9/Mines | Destroyed by as-42175 with Assembled Rifle Last Messages --------------- LOCATION=UNKNOWN GOAL=ESCAPE 01392_ Receiving FarCom transmissions... 01412_ ALERT: Infestation in the mines, dispatching Demolisher response squad. 01415_ System corrupted: Rocket Launcher failed to launch. 01417_ as-38007 destroyed. 01419_ as-62327 knocked back. 01419_ as-21886 destroyed. 01420_ Wheel destroyed. 01421_ as-62327 destroyed. 01423_ Destroyed Asb. Hover Unit. 01424_ Wheel destroyed. 01424_ System corrupted by crushing effect (+5). 01425_ Destroyed Asb. Hover Unit. 01425_ as-71993 destroyed. 01425_ as-08190 destroyed. 01425_ as-82476 destroyed. 01425_ as-54261 destroyed. 01425_ Destroyed Asb. Hover Unit. Map ----- +----------------------------------------------------+ | ?????????????????????????????????????????????????? | | ?????????????????????????????????????????????????? | | ?????????????????????????????????????????????????? | | ?????????????????????????????????????????????????? | | ?????????????????????????????????????????????????? | | ?????????????????????????????????????????????????? | | ?????????????????????????????????????????????????? | | ?????????????????????????????????????????????????? | | ?????????????????????????????????????????????????? | | ?????????????????????????????????????????????????? | | ??????????????????????? ??????????????????????? | | ????????????????????? ??????????????????????? | | ???????????????????? % ??????????????????????? | | ???????????????d ?## a #?????????????????????? | | ???????????????? d ? a #?????????????????????? | | ????????????????? # #?????????????????????? | | ?????????????????# # #?????????????????????? | | ?????????????????# aa #?????????????????????? | | ?????????????????# #?????????????????????? | | ??????????????????# ##????????????????????? | | ??????????????????# a ####?????????????????? | | ?????????????????## a ??????????????????? | | ?????????????????# #???????????????????? | | ?????????????????# #???????????????????? | | ??????????????????# a #???????????????????? | | ???????????????????# @ #???????????????????? | | ???????????????????## #???????????????????? | | ???????????????????## #??????????????s????? | | ???????????????????# ##?????????????s?????? | | ???????????????????# ##???????????????s????? | | ???????????????????## ###????????????????s????? | | ????????????????????#### #???????????????????????? | | ???????????????????????# #???????????????????????? | | ???????????????????????# #???????????????????????? | | ???????????????????????# #???????????????????????? | | ???????????????????# ### ##??????????????????????? | | ???????????????????# #??????????????????????? | | ???????????????????##### #??????????????????????? | | ???????????????????????# #???s??????????????????? | | ???????????????????????# #?s???ss???????????????? | | ???????????????????????# #??????????????????????? | | ???????????????????????# #??????????????????????? | | ???????????????????????# #??????????????????????? | | ???????????????????????# #??????????????????????? | | ????????################ ####???????????????????? | | ????????# #???????????????????? | | ????????# #???????????????????? | | ????????+ #???????????????????? | | ????????+ #???????????????????? | | ????????# ???????????????? | +----------------------------------------------------+ Best States ------------- Heat Dissipation 25 Energy Generation 12 Energy Capacity 265 Matter Stores 300 Matter Capacity 300 Sight Range 16 Terrain Scan Density 10 Evasion (%) 50 Item Schematics ----------------- None Robot Schematics ------------------ None Fabricated ------------ Nothing Alien Tech Used ----------------- None Achievements -------------- Tourist Challenges ------------ None Game ------ Seed KineticSystemNullifier Manual? 0 Play Time 00:35:35 Cumulative 3.3 hours Start 2021.09.06 @ 13:14:48 End 2021.09.06 @ 13:53:49 Sessions 1 Manual Loads 0 Difficulty Rogue Special Mode None Game No. 8 Rogue 8 Adventurer 0 Explorer 0 Win Type - Total 0 Types 0/0/0/0/0/0/0/0/0 Lore% 4 Gallery% 9 Achievement% 8 Wizard Run 0 Options --------- ASCII 0 Keyboard 1 Movement Arrows Keybinds 0 Fullscreen 0 Font 16/SmallcapsGlow Map View 76x50 Tactical HUD 1 Map Filters NONE Filters NONE Steam 1 RUN: ee76959d-6da3-4718-a07a-b648c5a08f2d